fUSD/lending_fUSD_20241116
["ID","MTS","AMOUNT","RATE_DAILY","PERIOD"]
[342396298,1731789118002,-150.0,0.00034982,120]
[342396299,1731789118035,-150.0,0.00034987,120]
[342396300,1731789118070,-300.21,0.0003499,120]
[342396301,1731789118101,-150.5,0.0003499,120]
[342396302,1731789118132,-964.0,0.0003499,30]
[342396303,1731789118162,-150.5,0.0003499,120]
[342396304,1731789118193,-964.0,0.0003499,30]
[342396305,1731789118223,-964.0,0.0003499,30]
[342396306,1731789118252,-964.0,0.0003499,30]
[342396307,1731789118285,-50000.0,0.00035,35]
[342396308,1731789118316,-2002.0,0.00035,120]
[342396309,1731789118345,-700.0,0.00035,120]
[342396310,1731789118376,-11368.46,0.00035,30]
[342396311,1731789118409,-500.0,0.00035,120]
[342396312,1731789118441,-1000.0,0.00035,30]
[342396313,1731789118477,-3248.45,0.00035,120]
[342396314,1731789118508,-7800.0,0.00035,94]
[342396315,1731789118538,-1614.07214399,0.00035,120]
[342396316,1731789118570,-158.167217,0.00035,30]
[342396317,1731789118600,-158.167217,0.00035,30]
[342396318,1731789118631,-500.99268379,0.00035,90]
[342396319,1731789118662,-1063.52442443,0.00035,32]
[342396320,1731789118693,-1800.0,0.00035,36]
[342396321,1731789118726,-20791.0,0.00035,120]
[342396322,1731789118758,-500.0,0.00035,120]
[342396323,1731789118789,-154.89036256,0.00035,120]
[342396324,1731789118822,-5000.0,0.00035,30]
[342396325,1731789118854,-150.0,0.00035009,120]
[342396326,1731789118884,-157.111609,0.00035198,60]
[342396327,1731789118915,-150.0,0.00035221,120]
[342396328,1731789118946,-150.0,0.00035237,120]
[342396329,1731789118976,-150.0,0.00035257,120]
[342396330,1731789119007,-150.111609,0.00035298,60]
[342396331,1731789119039,-150.0,0.00035299,120]
[342396332,1731789119072,-150.0,0.00035335,120]
[342396333,1731789119103,-150.0,0.0003534,120]
[342396334,1731789119133,-150.0,0.00035355,120]
[342396335,1731789119165,-150.0,0.0003536,120]
[342396336,1731789119195,-150.0,0.00035371,120]
[342396337,1731789119226,-150.0,0.00035394,120]
[342396338,1731789119256,-157.111609,0.00035398,60]
[342396339,1731789119286,-273.4731,0.000354,120]
[342396340,1731789119322,-339.0,0.000354,120]
[342396341,1731789119351,-150.0,0.000354,120]
[342396342,1731789119382,-150.0,0.000354,120]
[342396343,1731789119412,-323.40571,0.000354,120]
[342396344,1731789119443,-150.0,0.00035458,120]
[342396345,1731789119478,-150.0,0.00035478,120]
[342396346,1731789119510,-157.111609,0.00035498,60]
[342396347,1731789119543,-151.081,0.00035533,120]
[342396348,1731789119579,-150.0,0.00035574,120]
[342396349,1731789119610,-157.111609,0.00035598,60]
[342396350,1731789119643,-5000.0,0.00035616,90]
[342396351,1731789119674,-1052.41,0.00035616,60]
[342396352,1731789119707,-1052.41,0.00035616,60]
[342396353,1731789119740,-1052.41,0.00035616,60]
[342396354,1731789119771,-1052.41,0.00035616,60]
[342396355,1731789119803,-1052.41,0.00035616,60]
[342396356,1731789119834,-1052.41,0.00035616,60]
[342396357,1731789119865,-1052.41,0.00035616,60]
[342396358,1731789119895,-1052.41,0.00035616,60]
[342396359,1731789119927,-1052.41,0.00035616,60]
[342396360,1731789119959,-1052.41,0.00035616,60]
[342396361,1731789119989,-1052.41,0.00035616,60]
[342396362,1731789120022,-1052.41,0.00035616,60]
[342396363,1731789120055,-1052.41,0.00035616,60]
[342396364,1731789120087,-1052.41,0.00035616,60]
[342396365,1731789120118,-1052.41,0.00035616,60]
[342396366,1731789120150,-1052.41,0.00035616,60]
[342396367,1731789120182,-1052.41,0.00035616,60]
[342396368,1731789120216,-1052.41,0.00035616,60]
[342396369,1731789120249,-1052.41,0.00035616,60]
[342396370,1731789120282,-1052.41,0.00035616,60]
[342396371,1731789120315,-1052.41,0.00035616,60]
[342396372,1731789120348,-1052.41,0.00035616,60]
[342396373,1731789120381,-1052.41,0.00035616,60]
[342396374,1731789120414,-1052.60712728,0.00035616,60]
[342396375,1731789120445,-200.0,0.00035616,60]
[342396376,1731789120485,-150.0,0.00035643,120]
[342396377,1731789120519,-150.0,0.00035649,120]
[342396378,1731789120560,-157.111609,0.00035698,60]
[342396379,1731789120596,-151.0,0.00035699,120]
[342396380,1731789120636,-10000.0,0.0003575,120]
[342396381,1731789120674,-150.0,0.00035785,120]
[342396382,1731789120710,-157.111609,0.00035798,60]
[342396383,1731789120969,-150.0,0.00035841,120]
[342396384,1731789121007,-157.111609,0.00035898,60]
[342396385,1731789121043,-11081.08683361,0.00035927,30]
[342396386,1731789121080,-549.10887893,0.00035927,30]
[342396387,1731789121117,-150.0,0.00035983,120]
[342396388,1731789121156,-50000.0,0.00036,36]
[342396389,1731789121190,-1800.0,0.00036,37]
[342396390,1731789121225,-10000.0,0.00036,120]
[342396391,1731789121259,-500.0,0.00036,120]
[342396392,1731789121294,-10000.0,0.00036,30]
[342396393,1731789121332,-10000.0,0.00036,30]
[342396394,1731789121367,-7442.43,0.00036,30]
[342396395,1731789121400,-1000.0,0.00036,90]
[342396396,1731789121433,-800.0,0.00036,120]
[342396397,1731789121468,-250.0,0.00036,30]
[342396398,1731789121502,-150.0,0.0003606,120]
[342396399,1731789121536,-150.0,0.00036158,120]
[342396400,1731789121573,-150.0,0.00036164,120]
[342396401,1731789121609,-157.111609,0.00036198,120]
[342396402,1731789121644,-11090.34,0.0003625,120]
[342396403,1731789121678,-157.111609,0.00036298,60]
[342396404,1731789121714,-157.111609,0.00036398,120]
[342396405,1731789121748,-500.0,0.000364,120]
[342396406,1731789121783,-1228.76339153,0.000364,120]
[342396408,1731789121819,-300.0,0.000364,120]
[342396409,1731789121857,-157.111609,0.00036498,120]
[342396410,1731789121894,-10000.0,0.000365,120]
[342396411,1731789121935,-5000.0,0.000365,30]
[342396412,1731789121977,-45103.0,0.000365,60]
[342396413,1731789122016,-157.111609,0.00036598,60]
[342396414,1731789122057,-157.111609,0.00036698,90]
[342396415,1731789122094,-273.4731,0.000367,120]
[342396416,1731789122130,-220.4193,0.000367,120]
[342396417,1731789122164,-5000.0,0.00036789,31]
[342396418,1731789122198,-157.111609,0.00036798,120]
[342396419,1731789122231,-36985.8526,0.000368,60]
[342396420,1731789122266,-323.40571,0.000368,120]
[342396421,1731789122300,-157.111609,0.00036898,120]
[342396422,1731789122335,-5000.0,0.00036986,90]
[342396423,1731789122371,-50000.0,0.00037,37]
[342396424,1731789122406,-600.0,0.00037,120]
[342396425,1731789122439,-1075.0,0.00037042,30]
[342396426,1731789122476,-151.0,0.00037123,120]
[342396427,1731789122509,-157.111609,0.00037198,120]
[342396428,1731789122543,-381.11850009,0.000372,120]
[342396429,1731789122578,-364.54364249,0.000372,103]
[342396430,1731789122611,-364.54364249,0.000372,103]
[342396431,1731789122645,-364.54364249,0.000372,103]
[342396432,1731789122678,-364.54364249,0.000372,103]
[342396433,1731789122711,-364.54364249,0.000372,103]
[342396434,1731789122744,-8580.0,0.00037241,117]
[342396435,1731789122777,-10635.06930779,0.00037243,30]
[342396436,1731789122812,-157.111609,0.00037298,120]
[342396437,1731789122845,-2040.84,0.0003733,120]
[342396438,1731789122879,-157.111609,0.00037398,120]
[342396439,1731789122914,-370.0,0.000374,120]
[342396440,1731789122949,-11081.08683361,0.00037427,30]
[342396441,1731789122984,-157.111609,0.00037498,120]
[342396442,1731789123018,-151.0,0.00037507,120]
[342396443,1731789123054,-157.111609,0.00037598,120]
[342396444,1731789123092,-157.111609,0.00037698,120]
[342396445,1731789123128,-157.111609,0.00037798,120]
[342396446,1731789123166,-35693.2896,0.000378,60]
[342396447,1731789123201,-36859.8553,0.000378,60]
[342396448,1731789123237,-777.22200011,0.000378,120]
[342396449,1731789123273,-500.0,0.00037808,120]
[342396450,1731789123310,-500.0,0.00037808,120]
[342396451,1731789123345,-500.0,0.00037808,120]
[342396452,1731789123380,-500.0,0.00037808,120]
[342396453,1731789123415,-500.0,0.00037808,120]
[342396454,1731789123455,-500.0,0.00037808,120]
[342396455,1731789123492,-500.0,0.00037808,120]
[342396456,1731789123530,-500.0,0.00037808,120]
[342396457,1731789123566,-500.0,0.00037808,120]
[342396458,1731789123601,-500.0,0.00037808,120]
[342396459,1731789123637,-198.72391198,0.00037808,120]
[342396460,1731789123672,-500.0,0.00037808,120]
[342396461,1731789123709,-500.0,0.00037808,120]
[342396462,1731789123746,-500.0,0.00037808,120]
[342396463,1731789123784,-378.945,0.00037808,120]
[342396464,1731789123822,-151.068,0.00037853,120]
[342396465,1731789123860,-5000.0,0.00037873,31]
[342396466,1731789123898,-157.111609,0.00037898,120]
[342396467,1731789123936,-500.0,0.000379,30]
[342396468,1731789123974,-50000.0,0.00038,38]
[342396469,1731789124009,-2605.0,0.00038,30]
[342396470,1731789124047,-301.87901554,0.00038,90]
[342396471,1731789124086,-17372.0,0.00038,40]
[342396472,1731789124122,-150000.0,0.00038,30]
[342396473,1731789124159,-1800.0,0.00038,39]
[342396474,1731789124194,-1138524.62269489,0.00038,30]
[342396475,1731789124229,-33751.0,0.00038,120]
[342396476,1731789124266,-273.4731,0.00038,120]
[342396477,1731789124303,-1089.37648313,0.00038,120]
[342396478,1731789124346,-233.88476556,0.00038,120]
[342396479,1731789124382,-500.0,0.00038,120]
[342396480,1731789124420,-1027.0,0.00038,60]
[342396481,1731789124459,-607.91194046,0.00038,120]
[342396482,1731789124498,-1000.0,0.00038,90]
[342396483,1731789124536,-569.35,0.00038,120]
[342396484,1731789124573,-206.8,0.00038,120]
[342396485,1731789124608,-12768.1758306,0.00038,120]
[342396486,1731789124645,-3196.89609818,0.00038,120]
[342396487,1731789124883,-250.0,0.00038,30]
[342396488,1731789124923,-157.111609,0.00038198,120]
[342396489,1731789124961,-323.40571,0.000382,120]
[342396490,1731789124998,-157.111609,0.00038298,120]
[342396491,1731789125036,-500.0,0.00038353,120]
[342396492,1731789125073,-500.0,0.00038353,120]
[342396493,1731789125112,-500.0,0.00038353,120]
[342396494,1731789125149,-500.0,0.00038353,120]
[342396495,1731789125184,-500.0,0.00038353,120]
[342396496,1731789125220,-500.0,0.00038353,120]
[342396497,1731789125255,-500.0,0.00038353,120]
[342396498,1731789125292,-500.0,0.00038353,120]
[342396499,1731789125330,-500.0,0.00038353,120]
[342396500,1731789125366,-500.0,0.00038353,120]
[342396501,1731789125404,-500.0,0.00038353,120]
[342396502,1731789125440,-500.0,0.00038353,120]
[342396503,1731789125477,-500.0,0.00038353,120]
[342396504,1731789125513,-500.0,0.00038353,120]
[342396505,1731789125550,-500.0,0.00038353,120]
[342396506,1731789125592,-500.0,0.00038353,120]
[342396507,1731789125628,-500.0,0.00038353,120]
[342396508,1731789125665,-500.0,0.00038353,120]
[342396509,1731789125702,-500.0,0.00038353,120]
[342396510,1731789125740,-505.66142821,0.00038353,120]
[342396511,1731789125778,-5000.0,0.00038356,90]
[342396512,1731789125818,-552.89,0.00038356,30]
[342396513,1731789125855,-552.89,0.00038356,32]
[342396514,1731789125892,-552.89,0.00038356,34]
[342396515,1731789125930,-552.89,0.00038356,36]
[342396516,1731789125966,-552.89,0.00038356,38]
[342396517,1731789126002,-552.89,0.00038356,40]
[342396518,1731789126037,-552.89,0.00038356,42]
[342396519,1731789126072,-552.89,0.00038356,44]
[342396520,1731789126108,-552.89,0.00038356,46]
[342396521,1731789126145,-552.89,0.00038356,48]
[342396522,1731789126182,-552.89,0.00038356,50]
[342396523,1731789126219,-552.89,0.00038356,52]
[342396524,1731789126256,-552.89,0.00038356,54]
[342396525,1731789126291,-552.89,0.00038356,56]
[342396526,1731789126329,-552.89,0.00038356,58]
[342396527,1731789126364,-552.89,0.00038356,60]
[342396528,1731789126402,-552.89,0.00038356,62]
[342396529,1731789126438,-552.89,0.00038356,64]
[342396530,1731789126475,-552.89,0.00038356,66]
[342396531,1731789126509,-552.89,0.00038356,68]
[342396532,1731789126544,-552.89,0.00038356,68]
[342396533,1731789126581,-552.89,0.00038356,68]
[342396534,1731789126616,-552.89,0.00038356,68]
[342396535,1731789126652,-552.8902922,0.00038356,68]
[342396536,1731789126689,-200.0,0.00038356,60]
[342396537,1731789126981,1280.0,0.00035,120]
[342396538,1731789127038,618.7,0.00038356,30]
[342396539,1731789127337,500.0,0.00025,60]
[342396540,1731789127393,1000.0,0.00033096,60]
[342396541,1731789127434,500.0,0.00025,60]
[342396542,1731789127484,500.0,0.00025,60]
[342396543,1731789127538,500.0,0.00025,60]
[342396544,1731789127607,500.0,0.00025,60]
[342396545,1731789127654,500.0,0.00025,60]
[342396546,1731789127706,1000.0,0.00034192,60]
[342396547,1731789127751,246.58,0.00025,60]
[342396548,1731789127842,642.8863,0.00038356,30]
[342396549,1731789128066,649.6889,0.00038356,30]
[342396550,1731789128328,1000.0,0.00035288,60]
[342396551,1731789128383,543.0,0.00038356,30]
[342396552,1731789128674,496.29894,0.00038356,30]
[342396553,1731789128954,455.95658,0.00038356,30]
[342396554,1731789129282,417.9,0.00038356,30]
[342396555,1731789129578,1148.3242,0.00038356,30]
[342396556,1731789129871,1000.0,0.00036384,60]
[342396557,1731789129911,861.13,0.00038356,30]
[342396558,1731789130497,645.6691,0.00038356,30]
[342396559,1731789131160,646.0,0.00038356,30]
[342396560,1731789131420,1000.0,0.0003748,60]
[342396561,1731789131473,323.0,0.00038356,30]
[342396562,1731789135959,500.0,0.00025,60]
[342396563,1731789136233,500.0,0.00025,60]
[342396564,1731789136505,500.0,0.00025,60]
[342396565,1731789136771,500.0,0.00025,60]
[342396566,1731789137276,502.44,0.00025,60]
[342396567,1731789176877,809.08,8.219e-05,2]
[342396568,1731789176997,500.0,0.00025,60]
[342396569,1731789185648,500.0,0.00025,60]
[342396570,1731789185921,500.0,0.00025,60]
[342396571,1731789188867,500.0,0.00025,60]
[342396572,1731789191031,500.0,0.00025,60]
[342396573,1731789191292,500.0,0.00025,60]
[342396574,1731789191549,500.0,0.00025,60]
[342396575,1731789192725,500.0,0.00025,60]
[342396576,1731789206163,507.60875685,0.00025,60]
[342396577,1731789208425,500.0,0.00025,60]
[342396578,1731789208705,500.0,0.00025,60]
[342396647,1731789215300,500.0,0.00025,60]
[342396656,1731789215571,500.0,0.00025,60]
[342397247,1731789233630,500.0,0.00025,60]
[342397259,1731789233906,500.0,0.00025,60]
[342397267,1731789234174,500.0,0.00025,60]
[342397276,1731789234431,500.0,0.00025,60]
[342397287,1731789234701,500.0,0.00025,60]
[342397298,1731789234951,500.0,0.00025,60]
[342397309,1731789235219,500.0,0.00025,60]
[342397312,1731789235287,414.55370417,0.00025,60]
[342397322,1731789235511,500.0,0.00025,60]
[342397332,1731789235778,500.0,0.00025,60]
[342397344,1731789236069,500.0,0.00025,60]
[342397355,1731789236342,500.0,0.00025,60]
[342397448,1731789239230,415.72218633,0.00025,60]
[342398502,1731789279662,500.0,0.00025,60]
[342398509,1731789279929,500.0,0.00025,60]
[342398691,1731789286742,555.97575575,0.00025,60]
[342399470,1731789321093,500.0,0.00025,60]
[342399479,1731789321398,500.0,0.00025,60]
[342399557,1731789325105,500.0,0.00025,60]
[342399558,1731789325153,500.0,0.00025,60]
[342399563,1731789325405,500.0,0.00025,60]
[342399569,1731789325699,500.0,0.00025,60]
[342399576,1731789326018,500.0,0.00025,60]
[342399581,1731789326270,500.0,0.00025,60]
[342399587,1731789326578,500.0,0.00025,60]
[342399591,1731789326906,500.0,0.00025,60]
[342399598,1731789327173,500.0,0.00025,60]
[342399610,1731789327645,500.0,0.00025,60]
[342399623,1731789328142,500.0,0.00025,60]
[342399625,1731789328195,500.0,0.00025,60]
[342399633,1731789328477,500.0,0.00025,60]
[342399639,1731789328744,500.0,0.00025,60]
[342399647,1731789329050,500.0,0.00025,60]
[342399655,1731789329333,500.0,0.00025,60]
[342399660,1731789329614,500.0,0.00025,60]
[342399667,1731789329945,500.0,0.00025,60]
[342399674,1731789330222,500.0,0.00025,60]
[342399682,1731789330505,500.0,0.00025,60]
[342399688,1731789330757,410.79,0.00025,60]
[342399740,1731789346487,500.0,0.00025,60]
[342399741,1731789346772,500.0,0.00025,60]
[342399742,1731789390082,500.0,0.00025,60]
[342399743,1731789616425,500.0,0.00025,60]
[342399744,1731789616794,500.0,0.00025,60]
[342399745,1731789617070,500.0,0.00025,60]
[342399746,1731789617464,500.0,0.00025,60]
[342399747,1731789617758,279.73440403,0.00025,60]
[342399750,1731789838093,500.0,0.00025,60]
[342399751,1731789838364,500.0,0.00025,60]
[342399752,1731789838633,500.0,0.00025,60]
[342399753,1731789838913,500.0,0.00025,60]
[342399754,1731789839181,502.44,0.00025,60]
[342399755,1731789840719,500.0,0.00025,60]
[342399756,1731789840980,500.0,0.00025,60]
[342399757,1731789841300,500.0,0.00025,60]
[342399758,1731789841953,500.0,0.00025,60]
[342399759,1731789842224,500.0,0.00025,60]
[342399760,1731789842493,500.0,0.00025,60]
[342399761,1731789842769,246.58,0.00025,60]
[342399762,1731789858849,768.62,8.219e-05,2]
[342399763,1731789881378,-250.0,8.571e-05,2]
[342399764,1731789881409,-2250.0,8.585e-05,2]
[342399765,1731789920744,500.0,0.00025,60]
[342399766,1731789922194,500.0,0.00025,60]
[342399767,1731789922788,351.25617789,0.00025,60]
[342399768,1731789925041,500.0,0.00025,60]
[342399769,1731789976834,-95.4,8.585e-05,2]
[342399774,1731790038146,-531.9,8.609e-05,2]
[342399775,1731790038170,-162.65,8.617e-05,2]
[342399776,1731790038191,-971.72,8.761e-05,2]
[342399777,1731790038213,-1000.0,8.784e-05,2]
[342399778,1731790038235,-167.54,8.791e-05,2]
[342399779,1731790038257,-150.0,8.795e-05,2]
[342399780,1731790038281,-167.54,8.797e-05,2]
[342399781,1731790038304,-167.54,8.804e-05,2]
[342399782,1731790038327,-167.54,8.81e-05,2]
[342399783,1731790038349,-167.54,8.816e-05,2]
[342399784,1731790038372,-167.54,8.822e-05,2]
[342399785,1731790038394,-167.54,8.829e-05,2]
[342399786,1731790038416,-167.54,8.835e-05,2]
[342399787,1731790038438,-166.49,8.838e-05,2]
[342399788,1731790038459,-250.0,8.864e-05,2]
[342399789,1731790038483,-168.36,8.952e-05,2]
[342399790,1731790038505,-400.0,9e-05,3]
[342399791,1731790038531,-763.61,9.041e-05,2]
[342399792,1731790038552,-553.45,9.041e-05,2]
[342399793,1731790038573,-300.0,9.122e-05,2]
[342399794,1731790038594,-763.61,9.123e-05,2]
[342399795,1731790038615,-763.61,9.123e-05,2]
[342399796,1731790038636,-762.37,9.123e-05,2]
[342399797,1731790038656,-300.0,9.178e-05,2]
[342399798,1731790038676,-179.4,9.179e-05,2]
[342399799,1731790038697,-763.61,9.2e-05,2]
[342399800,1731790038723,-150.0,9.3e-05,2]
[342399801,1731790038749,-1556.81,9.441e-05,2]
[342399802,1731790038769,-432.72,9.441e-05,2]
[342399803,1731790038797,-150.0,9.462e-05,2]
[342399804,1731790038821,-280.15,9.534e-05,2]
[342399805,1731790038842,-724.72,9.534e-05,2]
[342399806,1731790038864,-229.95,9.534e-05,2]
[342399807,1731790038885,-150.0,9.534e-05,2]
[342399808,1731790038905,-150.0,9.534e-05,2]
[342399809,1731790038928,-150.0,9.534e-05,2]
[342399810,1731790038949,-649.7,9.578e-05,2]
[342399811,1731790038969,-723.82,9.578e-05,2]
[342399812,1731790038989,-302.3,9.578e-05,2]
[342399813,1731790039010,-150.0,9.578e-05,2]
[342399814,1731790039035,-150.0,9.578e-05,2]
[342399815,1731790039056,-150.0,9.578e-05,2]
[342399816,1731790039080,-531.9,9.685e-05,2]
[342399817,1731790039103,-161.24806,9.8e-05,2]
[342399818,1731790039128,-1000.0,9.882e-05,2]
[342399819,1731790039154,-8058.0785746,9.89e-05,2]
[342399820,1731790039180,-8481.2629,9.9e-05,2]
[342399821,1731790039204,-3539.43487763,9.9e-05,2]
[342399822,1731790044106,-800.0,9.1e-05,3]
[342399823,1731790044127,-1200.0,9.2e-05,3]
[342399824,1731790044149,-6222.28821084,9.9e-05,2]
[342399825,1731790050362,-1600.0,9.3e-05,3]
[342399826,1731790050384,-2000.0,9.4e-05,3]
[342399827,1731790050405,-400.0,9.5e-05,3]
[342399828,1731790050426,-1352.81411335,9.9e-05,2]
[342399829,1731790061400,415.72218633,0.00025,60]
[342399830,1731790081077,500.0,0.00025,60]
[342399831,1731790086504,500.0,0.00025,60]
[342399832,1731790086793,228.29727602,0.00025,60]
[342399833,1731790089227,500.0,0.00025,60]
[342399834,1731790089512,500.0,0.00025,60]
[342399835,1731790089801,500.0,0.00025,60]
[342399836,1731790091161,500.0,0.00025,60]
[342399837,1731790091454,625.65423931,0.00025,60]
[342399838,1731790096296,500.0,0.00025,60]
[342399839,1731790096553,535.5847146,0.00025,60]
[342399840,1731790098162,500.0,0.00025,60]
[342399841,1731790100153,500.0,0.00025,60]
[342399842,1731790100488,500.0,0.00025,60]
[342399843,1731790100783,501.05917094,0.00025,60]
[342399844,1731790101538,500.0,0.00025,60]
[342399845,1731790101808,500.0,0.00025,60]
[342399846,1731790102073,500.0,0.00025,60]
[342399847,1731790102401,500.0,0.00025,60]
[342399848,1731790104687,500.0,0.00025,60]
[342399849,1731790104894,500.0,0.00025,60]
[342399850,1731790105158,500.0,0.00025,60]
[342399851,1731790111979,568.69814212,0.00025,60]
[342399852,1731790115884,500.0,0.00025,60]
[342399853,1731790116384,500.0,0.00025,60]
[342399854,1731790116431,500.0,0.00025,60]
[342399855,1731790118369,500.0,0.00025,60]
[342399856,1731790118620,500.0,0.00025,60]
[342399857,1731790118913,611.45,0.00025,60]
[342399858,1731790119671,500.0,0.00025,60]
[342399859,1731790119970,500.0,0.00025,60]
[342399860,1731790120219,500.0,0.00025,60]
[342399862,1731790122242,500.0,0.00025,60]
[342399863,1731790122526,500.0,0.00025,60]
[342399864,1731790122810,500.0,0.00025,60]
[342399865,1731790138877,574.73970867,0.00025,60]
[342399871,1731790140480,206.9672,0.00025,60]
[342399873,1731790148737,594.35486101,0.00025,60]
[342399874,1731790151103,-250.0,8.976e-05,2]
[342399875,1731790155849,500.0,0.00025,60]
[342399876,1731790156322,500.0,0.00025,60]
[342399877,1731790156393,500.0,0.00025,60]
[342399878,1731790156658,500.0,0.00025,60]
[342399879,1731790156943,500.0,0.00025,60]
[342399880,1731790157189,500.0,0.00025,60]
[342399881,1731790157450,500.0,0.00025,60]
[342399882,1731790157730,500.0,0.00025,60]
[342399883,1731790158007,500.0,0.00025,60]
[342399884,1731790158279,500.0,0.00025,60]
[342399885,1731790158638,500.0,0.00025,60]
[342399899,1731790232015,-400.0,9.6e-05,3]
[342399900,1731790232026,-400.0,9.7e-05,3]
[342399901,1731790232036,-400.0,9.8e-05,3]
[342399902,1731790232046,-150.0,9.899e-05,2]
[342399903,1731790232056,-300.0,9.899e-05,2]
[342399904,1731790232066,-1381.72509935,9.9e-05,2]
[342399905,1731790232078,-365.19994533,9.9e-05,2]
[342399906,1731790232130,-8802.34926338,9.9e-05,2]
[342399907,1731790232241,-2321.82179632,9.9e-05,2]
[342399908,1731790232296,-10832.3908938,9.9e-05,2]
[342399909,1731790232307,-3403.4675,9.9e-05,2]
[342399910,1731790232317,-7143.6113,9.9e-05,2]
[342399911,1731790232327,-5823.9661,9.9e-05,2]
[342399912,1731790232337,-939.8361,9.9e-05,2]
[342399913,1731790232347,-712.0,9.9e-05,3]
[342399914,1731790232357,-1000.0,9.9e-05,2]
[342399915,1731790232366,-543.0,9.9e-05,3]
[342399916,1731790232377,-1000.0,9.9e-05,2]
[342399917,1731790232387,-200.0,9.951e-05,2]
[342399918,1731790232397,-1104.52457653,9.953e-05,2]
[342399919,1731790232408,-9606.6760277,9.955e-05,2]
[342399920,1731790232418,-488.70523548,9.958e-05,2]
[342399922,1731790232428,-9606.6760277,9.959e-05,2]
[342399924,1731790232438,-488.70523548,9.96e-05,2]
[342399926,1731790232449,-671.18120842,9.96e-05,2]
[342399928,1731790232463,-1511.39,9.96e-05,2]
[342399930,1731790232473,-671.18120842,9.961e-05,2]
[342399932,1731790232482,-488.70523548,9.963e-05,2]
[342399934,1731790232492,-1104.52457653,9.969e-05,2]
[342399935,1731790232500,-200.0,9.971e-05,2]
[342399938,1731790232511,-488.70523548,9.972e-05,2]
[342399940,1731790232521,-200.0,9.972e-05,2]
[342399941,1731790232530,-500.0,9.973e-05,2]
[342399944,1731790232540,-500.0,9.973e-05,2]
[342399947,1731790232550,-200.0,9.973e-05,2]
[342399949,1731790232559,-488.70523548,9.974e-05,2]
[342399951,1731790232569,-1104.52457653,9.975e-05,2]
[342399953,1731790232579,-1104.52457653,9.976e-05,2]
[342399955,1731790232591,-671.18120842,9.976e-05,2]
[342399957,1731790232600,-6274.83330616,9.977e-05,2]
[342399959,1731790232617,-3331.84272154,9.977e-05,2]
[342399961,1731790232627,-200.0,9.979e-05,2]
[342399963,1731790232636,-200.0,9.979e-05,2]
[342399965,1731790232646,-9606.6760277,9.983e-05,2]
[342399966,1731790232655,-671.18120842,9.986e-05,2]
[342399967,1731790232665,-9606.6760277,9.996e-05,2]